Cogmind - Beta 15 @@@ ROGUE MODE // 2025.06.10 @ 17:25:47 Player: Mogwok Wargfriend Result: Destroyed by S-27 Virus with Autogun Performance ------------- Evolutions (4) 2000 Regions Visited (7) 1400 Robots Destroyed (70) 350 Value Destroyed (1504) 1504 Prototype IDs (4) 80 Alien Tech Used (1) 200 Bonus (15) 15 TOTAL SCORE: 5549 Bonus ------- High Alert Combat Kills 15 Cogmind --------- Core Integrity 0/850 Matter 290/300 Energy 99/150 System Corruption 8% Temperature Cool (1) Movement Flying (40) Location -6/Lower Caves Parts ------- > --- POWER (1) -------- Light Angular Momentum Engine > --- PROPULSION (4) --- VTOL Module Xenon Bombardment Thruster Xenon Bombardment Thruster Nuclear Pulse Thruster > --- UTILITY (8) ------ Advanced Weight Redist. System Advanced Sensor Array Improved Signal Interpreter Hacking Suite Hacking Suite Hacking Suite > --- WEAPON (2) ------- Mace Chainsword > --- INVENTORY (5) ---- Cesium-ion Thruster Xenon Bombardment Thruster Cloaking Device Improved Propulsion Shielding Peak State ------------ > --- POWER ------------ Light Fission Core > --- PROPULSION ------- Xenon Bombardment Thruster Xenon Bombardment Thruster Xenon Bombardment Thruster Nuclear Pulse Thruster > --- UTILITY ---------- Advanced Weight Redist. System Advanced Sensor Array Improved Signal Interpreter Improved Propulsion Shielding Hacking Suite Hacking Suite Hacking Suite System Shield > --- WEAPON ----------- Mace Chainsword > --- INVENTORY -------- Light Angular Momentum Engine Cesium-ion Thruster Xenon Bombardment Thruster Cloaking Device Improved Propulsion Shielding [Rating: 56] Favorites ----------- Power Light Deuterium Engine Engine Light Deuterium Engine Power Core Light Fission Core Propulsion Flight Unit Treads Medium Treads Leg Aluminum Leg Wheel Wheel Hover Unit Improved Hover Unit Flight Unit Flight Unit Utility Hacking Suite Device Improved Sensor Array Storage Small Storage Unit Processor Improved Signal Interpreter Hackware Hacking Suite Protection Improved Propulsion Shielding Weapon Mace Energy Gun Medium Laser Ballistic Gun Light Assault Rifle Ballistic Cannon Improved Light Cannon Impact Weapon Mace Slashing Weapon Katana Build | -11 -10 -9 -8 -7 -6 -6 -6 ------- Run | Yrd Mat Mat Mat Fac Fac Low Low Slots Evolved 8 | . . 2 2 2 2 . . Power . | . . . . . . . . Propulsion 2 | . . . 1 1 . . . Utility 6 | . . 2 1 1 2 . . Weapon . | . . . . . . . . Parts Attached 88 | 7 14 7 10 8 39 1 2 Power 14 | 1 2 1 3 1 5 . 1 Engine 8 | 1 2 1 1 1 1 . 1 Core 6 | . . . 2 . 4 . . Reactor . | . . . . . . . . Propulsion 26 | 2 3 3 2 3 12 . 1 Treads 1 | . . . . . 1 . . Leg 3 | 2 1 . . . . . . Wheel 1 | . . . . . 1 . . Hover 3 | . . . . . 3 . . Flight 18 | . 2 3 2 3 7 . 1 Utility 33 | 2 4 1 5 2 19 . . Device 14 | 1 2 . 3 . 8 . . Storage 1 | 1 . . . . . . . Processor 7 | . . 1 1 . 5 . . Hackware 7 | . 1 . 1 1 4 . . Protection 4 | . 1 . . 1 2 . . Artifact . | . . . . . . . . Weapon 15 | 2 5 2 . 2 3 1 . Energy Gun 4 | 1 3 . . . . . . Energy Cannon . | . . . . . . . . Ballistic Gun 2 | 1 1 . . . . . . Ballistic Cannon 1 | . 1 . . . . . . Launcher . | . . . . . . . . Special Weapon . | . . . . . . . . Impact Weapon 5 | . . 2 . 2 1 . . Slashing Weapon 3 | . . . . . 2 1 . Piercing Weapon . | . . . . . . . . Special Melee Weapon . | . . . . . . . . Unidentified Prototypes 3 | . . . . . 2 1 . Corrupted Parts 1 | . . . . . 1 . . System Corruption 3 | . . . . . 3 . . Parts Lost 39 | . 3 1 2 9 20 1 3 Power 8 | . . 1 . 1 5 . 1 Propulsion 11 | . . . 1 5 4 . 1 Utility 14 | . 1 . 1 2 8 1 1 Weapon 6 | . 2 . . 1 3 . . Highest Loss Streak 9 | . 2 1 1 7 9 1 3 To Critical Strikes . | . . . . . . . . Average Backups 5 | 4 7 7 4 4 3 5 4 Power . | . 1 . 1 . . 1 . Propulsion 1 | 3 1 2 1 1 1 2 2 Utility 1 | . 2 1 1 2 1 2 2 Weapon . | . 2 2 . . . . . Tool/Special . | . . . . . . . . Unused Backups 16 | . 8 2 3 . 1 . 2 Power 2 | . . . 1 . 1 . . Propulsion 6 | . 4 1 . . . . 1 Utility 7 | . 4 . 2 . . . 1 Weapon 1 | . . 1 . . . . . Tool/Special . | . . . . . . . . Average Slot Usage (%) 85 | . 93 68 84 87 84 95 88 Engine 5 | . 14 10 . 6 1 . 2 Core 2 | . . . 8 . 3 6 4 Leg 3 | . 22 . . . . . . Flight 19 | . 5 22 26 27 17 26 24 Device 10 | . 5 . 17 14 11 13 13 Storage 3 | . 14 9 . . . . . Processor 8 | . . 11 9 7 12 6 6 Hackware 15 | . 2 11 17 14 20 22 20 Protection 2 | . 5 . . 1 3 6 4 Energy Gun 2 | . 13 . . . . . . Ballistic Gun 1 | . 8 . . . . . . Impact Weapon 6 | . . 4 5 12 6 6 6 Slashing Weapon 1 | . . . . . 2 5 6 Peak Build Rating 56 | 9 10 13 24 32 52 56 53 Average Rating 28 | 5 8 9 20 27 42 54 50 On Entrance 21 | . 9 8 8 20 18 52 53 Naked Turns . | . . . . . . . . Heaviest Build 16 | 13 16 12 12 14 16 15 15 Greatest Support 24 | 20 20 8 13 14 24 15 15 Greatest Overweight (x) 3 | 1 3 1 3 1 3 . . Average Overweight (x) . | . . . . . . . . Largest Inventory Capacity 8 | 8 8 8 5 5 5 5 5 Average Capacity 5 | 7 8 7 5 5 5 5 5 Most Carried 8 | 6 8 8 5 5 5 5 5 Average Carried 5 | 4 7 7 4 4 3 5 4 Final Capacity 8 | 8 8 5 5 5 5 5 5 Final Carried 8 | 6 8 5 5 4 5 5 4 Class Distribution -------------------- 33% | Hacker-Mutant 30% | Hacker-Sprinter 24% | Mutant 9% | Hacker-Gladiator Dominant Class ---------------- Mutant | -10/Materials Mutant | -9/Materials Hacker-Sprinter | -8/Materials Hacker-Sprinter | -7/Factory Hacker-Mutant | -6/Factory Hacker-Mutant | -6/Lower Caves Hacker-Mutant | -6/Lower Caves Resources | -11 -10 -9 -8 -7 -6 -6 -6 ----------- Run | Yrd Mat Mat Mat Fac Fac Low Low Matter Collected 1357 | 283 178 74 37 199 469 117 . Remotely . | . . . . . . . . Salvage Created 2478 | 143 555 63 66 137 1473 19 22 Parts 76 | 8 35 4 . 5 22 . 2 Haulers Intercepted 2 | . 1 . . . 1 . . Recyclers Shooed 4 | . 2 . . . 2 . . Parts Field Recycled . | . . . . . . . . Retrieved Matter . | . . . . . . . . Parts Self-Destructed 1 | . . . . . . 1 . Prevented 1 | . . . . . . 1 . Kills | -11 -10 -9 -8 -7 -6 -6 -6 ------- Run | Yrd Mat Mat Mat Fac Fac Low Low Combat Hostiles Destroyed 36 | . 14 6 1 2 11 1 1 Melee 15 | . . 5 1 2 6 . 1 Guns 12 | . 12 . . . . . . Cannons 1 | . . . . . 1 . . AOE 2 | . 2 . . . . . . Classes Destroyed 12 | 2 6 . 1 1 2 . . Worker 7 | . . . . . 7 . . Builder 4 | . 1 . . 1 2 . . Tunneler 4 | 3 . . 1 . . . . Hauler 2 | . 1 . . . 1 . . Recycler 7 | 1 . . . . 6 . . Mechanic 2 | . . . . . 2 . . Operator 3 | . 1 . . 1 1 . . Drone 1 | . . . 1 . . . . Watcher 6 | . 1 . 1 1 3 . . Swarmer 19 | . 3 6 . . 8 1 1 Grunt 12 | . 11 . . . 1 . . Programmer 4 | . . . . 2 2 . . Best Kill Streak 8 | 4 4 3 1 1 8 1 1 Combat Bots Only 4 | . 4 3 1 1 4 1 1 Max Kills in Single Turn 2 | 1 2 1 1 1 1 1 1 Gunslinging . | . . . . . . . . Exploded 2 | . 2 . . . . . . Melee 1 | . . 1 1 1 1 . 1 Uniques/NPCs Destroyed . | . . . . . . . . Combat | -11 -10 -9 -8 -7 -6 -6 -6 -------- Run | Yrd Mat Mat Mat Fac Fac Low Low Hostile Shots Fired 413 | . 71 37 15 27 223 22 18 Missed 152 | . 14 11 9 10 97 7 4 Hits 261 | . 57 26 6 17 126 15 14 Projectile 261 | . 57 26 6 17 126 15 14 Critical Strikes 11 | . 3 1 . 2 5 . . Damage Taken 4031 | . 810 217 99 578 1868 243 216 Core 1295 | . 157 96 15 167 735 78 47 Absorbed by Shields . | . . . . . . . . Redirected to Shielding 367 | . . . . 48 211 54 54 Regen/Repaired (Parts) 209 | . . . . . 209 . . Core Remaining (%) 77 | 100 37 76 97 76 . . . Volleys Fired 75 | 13 62 . . . . . . Largest 2 | 2 2 . . . . . . Hottest 90 | 60 90 . . . . . . Shots Fired 139 | 25 114 . . . . . . Gun 138 | 25 113 . . . . . . Cannon 1 | . 1 . . . . . . Launcher . | . . . . . . . . Special . | . . . . . . . . Kinetic 51 | 13 38 . . . . . . Thermal 88 | 12 76 . . . . . . Explosive . | . . . . . . . . Electromagnetic . | . . . . . . . . Robot Hit Streak 12 | 12 9 . . . . . . Robot Miss Streak 4 | 2 4 . . . . . . Penetration Max . | . . . . . . . . Secondary Targets 3 | . 3 . . . . . . Max Gunslinging Chain 1 | . 1 . . . . . . Shots Hit Robots 179 | 17 74 12 4 13 52 6 1 Core Hits 59 | 7 34 1 . 3 13 . 1 Critical Kills 3 | . . 1 . . 2 . . Critical Parts Destroyed 16 | . . 4 . 1 9 2 . Critical Strikes 25 | . 5 5 . 1 12 2 . Burn 5 | . 5 . . . . . . Smash 19 | . . 5 . 1 11 2 . Sever 1 | . . . . . 1 . . Melee Attacks 240 | . . 21 20 52 125 17 5 Impact 215 | . . 21 20 52 104 14 4 Slashing 25 | . . . . . 21 3 1 Piercing . | . . . . . . . . Sneak Attacks 22 | . . . 1 3 18 . . Combat Hostiles 1 | . . . . . 1 . . Follow-up Attacks 17 | . . 3 . 1 9 3 1 Damage Inflicted 5459 | 170 1077 407 164 486 2928 191 36 Guns 1004 | 170 834 . . . . . . Cannons . | . . . . . . . . Explosions 243 | . 243 . . . . . . Melee 4183 | . . 407 164 486 2899 191 36 Ramming 29 | . . . . . 29 . . Kinetic 243 | 71 172 . . . . . . Thermal 1004 | 99 905 . . . . . . Explosive . | . . . . . . . . Electromagnetic . | . . . . . . . . Impact 3801 | . . 407 164 486 2621 123 . Slashing 382 | . . . . . 278 68 36 Piercing . | . . . . . . . . Highest Corruption 8 | . . . . . 8 8 8 Average Corruption 6 | . . . . . 5 8 8 Corruption Purged . | . . . . . . . . Corruption Blocked . | . . . . . . . . Effects 52 | . . . . . 40 11 1 Message Errors 14 | . . . . . 10 3 1 Matter Fused 15 | . . . . . 12 3 . Heat Flow Errors 1 | . . . . . 1 . . Energy Discharges 8 | . . . . . 8 . . Data Loss (minor) 8 | . . . . . 5 3 . Data Loss (major) 2 | . . . . . 1 1 . Alerts 4 | . . . . . 3 1 . Overload Shots . | . . . . . . . . Overflow Damage 1598 | . 3 181 27 115 1195 77 . Projectiles . | . . . . . . . . Explosions 3 | . 3 . . . . . . Melee 1595 | . . 181 27 115 1195 77 . Knockbacks 14 | . . . 1 2 11 . . Impact 13 | . . . 1 2 10 . . Kinetic . | . . . . . . . . Secondary 1 | . . . . . 1 . . Self-Inflicted Damage 102 | . 88 . . . 14 . . Shots 2 | . 2 . . . . . . Rammed 1 | . . . . . 1 . . Targets Rammed 1 | . . . . . 1 . . Kicked . | . . . . . . . . Crushed . | . . . . . . . . Highest Temperature 286 | 60 286 . . 14 149 . . Average Temperature 108 | 32 128 . . 14 78 . . Received Heat Transfer 684 | . 384 15 18 21 246 . . Effects 1 | . 1 . . . . . . Energy Bleed 1 | . 1 . . . . . . Siege Activations . | . . . . . . . . Martial Activations . | . . . . . . . . Shielding Activations . | . . . . . . . . Robots Disrupted . | . . . . . . . . Combat Hostiles . | . . . . . . . . Robots Corrupted 24 | . . 1 2 2 18 1 . Combat Hostiles 6 | . . 1 . . 4 1 . Parts Fried 48 | . . . 6 3 38 1 . Impact Corruptions 66 | . . 8 3 8 43 4 . Robots Melted 1 | . 1 . . . . . . Combat Hostiles . | . . . . . . . . Parts Melted 4 | . 3 . . 1 . . . Heat Transferred 2685 | 225 2460 . . . . . . Parts Sabotaged . | . . . . . . . . Parts Stolen . | . . . . . . . . Parts Stripped . | . . . . . . . . Power Chain Reactions . | . . . . . . . . Alert | -11 -10 -9 -8 -7 -6 -6 -6 ------- Run | Yrd Mat Mat Mat Fac Fac Low Low Maximum Alert Level 2 | . 1 . . . 2 . . Low Security (%) 64 | 100 53 100 100 100 27 . . Level 1 31 | . 46 . . . 61 . . Level 2 4 | . . . . . 10 . . Level 3 . | . . . . . . . . Level 4 . | . . . . . . . . Level 5 . | . . . . . . . . High Security . | . . . . . . . . Max Security . | . . . . . . . . Peak Influence 420 | 10 309 168 60 58 420 . . Initial 49 | . . 49 7 17 . . . Average 135 | 1 153 41 15 10 267 . . Influence Increases 2545 | 20 540 308 210 249 1138 35 45 Destroy 0b10 Robot/C 700 | . 280 120 . 40 220 20 20 Destroy 0b10 Robot/NC 180 | 20 20 . 15 15 110 . . Destroy Leader 166 | . 54 20 2 22 58 . 10 Successful Hack 232 | . 22 17 15 77 101 . . Disable Machine 105 | . 45 . 15 15 30 . . Destroy Structure 97 | . 29 1 13 20 34 . . Partial Spotted 375 | . . 60 120 60 135 . . Lose Combat Pursuer 690 | . 90 90 30 . 450 15 15 Influence Decreases 2441 | 20 422 407 190 288 730 332 52 Entered New Map 277 | . . 69 12 22 . 152 22 Time Decay 1554 | 20 242 178 168 246 530 170 . Lost Part 310 | . 30 10 10 20 200 10 30 Purge Threat 300 | . 150 150 . . . . . Squads Dispatched 20 | . 3 2 1 5 9 . . Investigation 11 | . 2 1 1 2 5 . . Extermination 6 | . . . . 2 4 . . Reinforcement 3 | . 1 1 . 1 . . . Assault . | . . . . . . . . Garrison . | . . . . . . . . Intercept . | . . . . . . . . Searches Triggered . | . . . . . . . . Construction Impeded . | . . . . . . . . Haulers Reinforced . | . . . . . . . . Active Scanning Responses . | . . . . . . . . Cargo Convoy Interrupts 1 | . . . . 1 . . . Stealth | -11 -10 -9 -8 -7 -6 -6 -6 --------- Run | Yrd Mat Mat Mat Fac Fac Low Low Distress Signals 4 | . 1 1 . 2 . . . Communications Jammed . | . . . . . . . . Distress Signals . | . . . . . . . . Times Spotted 138 | . 28 18 20 18 46 4 4 Peak Tracking Total 10 | . 8 10 6 4 10 3 4 Tactical Retreats 33 | . 2 3 7 5 14 1 1 Traps | -11 -10 -9 -8 -7 -6 -6 -6 ------- Run | Yrd Mat Mat Mat Fac Fac Low Low Traps Triggered 9 | . 4 . 1 1 3 . . Indirectly . | . . . . . . . . Trap Hack Attempts . | . . . . . . . . Triggered . | . . . . . . . . Disarmed . | . . . . . . . . Reprogrammed . | . . . . . . . . Reused . | . . . . . . . . Traps Extracted . | . . . . . . . . Installed . | . . . . . . . . Triggered . | . . . . . . . . Machines | -11 -10 -9 -8 -7 -6 -6 -6 ---------- Run | Yrd Mat Mat Mat Fac Fac Low Low Machines Disabled 8 | . 3 . 1 1 2 1 . Max in Single Turn 2 | . 2 . 1 1 1 1 . Garrison Access 2 | . . . . 1 1 . . Machines Repaired . | . . . . . . . . Machines Dismantled . | . . . . . . . . Machines Sabotaged . | . . . . . . . . Overloaded Fab Kills . | . . . . . . . . Hacking | -11 -10 -9 -8 -7 -6 -6 -6 --------- Run | Yrd Mat Mat Mat Fac Fac Low Low Machines Accessed 47 | . 5 8 7 8 17 2 . Terminals 23 | . 5 6 4 3 5 . . Fabricators 4 | . . . . 2 2 . . Repair Stations 4 | . . . . . 4 . . Recycling Units 5 | . . 1 1 1 2 . . Scanalyzers 6 | . . 1 2 1 2 . . Garrison Access 3 | . . . . 1 2 . . Total Hacks 165 | . 18 34 23 38 50 2 . Successful 111 | . 12 23 21 19 34 2 . Failed 53 | . 6 10 2 19 16 . . Catastrophic 7 | . 1 . . 3 3 . . Database Lockouts 1 | . . 1 . . . . . Manual 81 | . 17 24 8 16 16 . . Terminals 84 | . 18 26 8 19 13 . . Fabricators 15 | . . . . 9 6 . . Repair Stations 19 | . . . . . 19 . . Recycling Units 7 | . . 2 1 1 3 . . Scanalyzers 31 | . . 6 14 5 6 . . Garrison Access 7 | . . . . 4 3 . . Terminal Hacks 33 | . 9 10 2 8 2 2 . Record 5 | . . 1 . 2 . 2 . Part Schematic 4 | . . 1 . 2 1 . . Robot Analysis 7 | . 4 3 . . . . . Prototype ID Bank 1 | . 1 . . . . . . Branch Access Points 2 | . . 1 . . 1 . . Terminal Index 4 | . 1 1 1 1 . . . Alert Level 3 | . 2 . 1 . . . . Unreport Threat 2 | . 1 1 . . . . . Locate Traps 3 | . . 1 . 2 . . . Recall Investigation 2 | . . 1 . 1 . . . Fabricator Hacks 10 | . . . . 4 6 . . Network Status 3 | . . . . 1 2 . . Load Schematic 4 | . . . . 2 2 . . Build 3 | . . . . 1 2 . . Repair Station Hacks 14 | . . . . . 14 . . Scan Component 8 | . . . . . 8 . . Repair 6 | . . . . . 6 . . Recycling Unit Hacks 1 | . . 1 . . . . . Report Inventory 1 | . . 1 . . . . . Scanalyzer 27 | . . 6 14 2 5 . . Insert Component 14 | . . 3 7 1 3 . . Analyze 13 | . . 3 7 1 2 . . Garrison Access Hacks 2 | . . . . 1 1 . . Seal Access 2 | . . . . 1 1 . . Unauthorized Hacks 24 | . 3 6 5 4 6 . . Terminals 18 | . 3 5 4 3 3 . . Assimilate 3 | . . 1 . . 2 . . Botnet 10 | . 2 3 3 2 . . . Operators 5 | . 1 1 1 1 1 . . Fabricators . | . . . . . . . . Repair Stations 1 | . . . . . 1 . . Mechanics 1 | . . . . . 1 . . Recycling Units 3 | . . 1 1 . 1 . . Reject 3 | . . 1 1 . 1 . . Scanalyzers . | . . . . . . . . Garrison Access 2 | . . . . 1 1 . . Watchers 2 | . . . . 1 1 . . Data Cores Recovered . | . . . . . . . . Used . | . . . . . . . . Hacking Detections 37 | . 5 7 5 7 13 . . Full Trace Events 8 | . 1 1 . 2 4 . . Feedback Events . | . . . . . . . . Feedback Blocked . | . . . . . . . . Robot Schematics Acquired . | . . . . . . . . Robots Built . | . . . . . . . . Authchips . | . . . . . . . . Time . | . . . . . . . . Total Robot Build Rating . | . . . . . . . . Part Schematics Acquired 16 | . . 4 6 3 3 . . Parts Built 6 | . . . . 2 4 . . Authchips . | . . . . . . . . Time 182 | . . . . 36 146 . . Total Part Build Rating 18 | . . . . 6 12 . . Parts Repaired 6 | . . . . . 6 . . Time 181 | . . . . . 181 . . Parts Recycled . | . . . . . . . . Recycled Matter . | . . . . . . . . Retrieved Matter . | . . . . . . . . Retrieved Components . | . . . . . . . . Parts Scanalyzed 12 | . . 3 6 1 2 . . Part Schematics Acquired 12 | . . 3 6 1 2 . . Parts Damaged 1 | . . . 1 . . . . Bothacking | -11 -10 -9 -8 -7 -6 -6 -6 ------------ Run | Yrd Mat Mat Mat Fac Fac Low Low Used RIF Installer . | . . . . . . . . Robots Hacked . | . . . . . . . . Non-combat . | . . . . . . . . Combat . | . . . . . . . . Robot Hacks Applied . | . . . . . . . . Relay Couplers Released . | . . . . . . . . Fabnet Peak Effective % . | . . . . . . . . Robots Rewired . | . . . . . . . . Allies Hacked . | . . . . . . . . Hacks Repelled . | . . . . . . . . Allies | -11 -10 -9 -8 -7 -6 -6 -6 -------- Run | Yrd Mat Mat Mat Fac Fac Low Low Total Allies 2 | . . 1 . . 1 . . Largest Group 1 | . . 1 1 . 1 . . Highest-Rated Group 26 | . . 10 10 . 26 . . Highest-Rated Ally 26 | . . 10 10 . 26 . . Total Orders . | . . . . . . . . Ally Attacks . | . . . . . . . . Total Damage . | . . . . . . . . Kills . | . . . . . . . . Allies Corrupted . | . . . . . . . . Allies Melted . | . . . . . . . . Intel | -11 -10 -9 -8 -7 -6 -6 -6 ------- Run | Yrd Mat Mat Mat Fac Fac Low Low Active Infowar (turns) 4334 | 4 164 . 629 1205 1963 353 16 Sensors 4054 | . . . 575 1205 1905 353 16 Terrain 168 | 4 164 . . . . . . Cloaking 58 | . . . . . 58 . . ECM 1312 | . . . 107 1205 . . . Robot Analysis Total 7 | . 4 3 . . . . . Derelict Logs Recovered 1 | . . . . . . 1 . Drone Launches . | . . . . . . . . Drone Recoveries . | . . . . . . . . Exploration | -11 -10 -9 -8 -7 -6 -6 -6 ------------- Run | Yrd Mat Mat Mat Fac Fac Low Low Turns Passed 6040 | 145 934 549 645 1233 2165 353 16 Spaces Moved 7536 | 84 640 758 1004 1395 2962 685 8 Core 492 | 22 . . 1 6 463 . . Treads . | . . . . . . . . Legs 466 | 62 404 . . . . . . Wheels . | . . . . . . . . Hover 11 | . . . . . 11 . . Flight 6567 | . 236 758 1003 1389 2488 685 8 Fastest Speed 27 | 50 37 34 30 32 27 40 40 Average Speed 42 | 111 90 40 32 32 39 40 40 Slowest Speed 280 | 120 280 117 200 100 200 40 40 Overloaded Moves . | . . . . . . . . Propulsion Burnouts . | . . . . . . . . Robots Hopped 30 | . 2 8 7 . 13 . . Potential Cave-ins . | . . . . . . . . Cave-ins Triggered . | . . . . . . . . Exploration Rate (%) 40 | 4 78 45 51 18 55 71 2 Regions Visited 7 Branch Regions 2 Pre-discovered Areas . | . . . . . . . . Known Exits Taken 5 | . . 1 1 1 1 1 . Unknown Exits Taken 2 | 1 1 . . . . . . Scrap Searched 1 | . . . . . . 1 . Spaces Dug 67 | . . . 13 20 34 . . Terrain Destroyed 100 | . 33 . 13 20 34 . . Melee 67 | . . . 13 20 34 . . Projectile . | . . . . . . . . AOE 33 | . 33 . . . . . . Terrain Rammed . | . . . . . . . . Walls Destroyed . | . . . . . . . . Machines Disabled . | . . . . . . . . Actions | -11 -10 -9 -8 -7 -6 -6 -6 --------- Run | Yrd Mat Mat Mat Fac Fac Low Low Total 9841 | 109 890 967 1286 2093 3745 737 14 Wait 1807 | . 139 172 235 641 585 35 . Move 7471 | 83 635 741 989 1394 2937 684 8 Hop 28 | . 2 8 7 . 11 . . Pick Up 45 | 6 12 4 9 4 10 . . Fast Attach 62 | 7 7 . 4 4 37 2 1 Attach 35 | . 3 8 6 5 12 . 1 Detach 24 | . 5 6 2 1 10 . . Swap 18 | . 5 3 4 1 5 . . Drop 52 | . 20 9 10 3 10 . . Fire 75 | 13 62 . . . . . . Melee 203 | . . 16 20 40 109 14 4 Ram 1 | . . . . . 1 . . Kick . | . . . . . . . . Crush . | . . . . . . . . Escape Stasis 18 | . . . . . 18 . . Rewire 2 | . . . . . . 2 . Trap . | . . . . . . . . Miscellaneous . | . . . . . . . . Route ------- -11/Scrapyard -10/Materials (discovered 4 exits: *Mat x2 / [*Min x2]) -9/Materials (discovered 3 exits: *Mat / *Min x2) -8/Materials (discovered 2 exits: *Fac x2) -7/Factory -6/Factory (discovered 2 exits: *Low x2) -6/Lower Caves -6/Lower Caves History --------- Turn | Location | Event 18 | -11/Scrapyard | Discovered new exit (range 14) 146 | -11/Scrapyard | Entered Materials 308 | -10/Materials | Build established: Mutant 335 | -10/Materials | Discovered new exit (range 6) 614 | -10/Materials | Discovered new exit (range 16) 734 | -10/Materials | Core integrity fell below 50% 957 | -10/Materials | Discovered new exit (range 6) 1069 | -10/Materials | Discovered new exit (range 8) 1080 | -10/Materials | Entered another Materials area 1080 | -9/Materials | Evolved 2 slots: Utility x2 1163 | -9/Materials | Discovered new exit (range 13) 1361 | -9/Materials | Discovered new exit (range 3) 1362 | -9/Materials | Identified exit to Materials 1540 | -9/Materials | Identified exit to Mines 1562 | -9/Materials | Central database locked down 1629 | -9/Materials | Entered another Materials area 1629 | -8/Materials | Accompanied by 1 ally 1629 | -8/Materials | Evolved 2 slots: Propulsion x1, Utility x1 2163 | -8/Materials | Discovered new exit (range 11) 2168 | -8/Materials | Identified exit to Factory 2241 | -8/Materials | Build established: Hacker-Sprinter 2250 | -8/Materials | Discovered exit to Factory (range 6) 2274 | -8/Materials | Entered Factory 2274 | -7/Factory | Evolved 2 slots: Propulsion x1, Utility x1 2908 | -7/Factory | Fabricated Imp. Propulsion Shielding? 3353 | -7/Factory | Cargo convoy interrupted 3404 | -7/Factory | Allied Derelicts emerged from ambush trap array 3423 | -7/Factory | Discovered new exit (range 6) 3424 | -7/Factory | Identified exit to Factory 3507 | -7/Factory | Entered another Factory area 3507 | -6/Factory | Evolved 2 slots: Utility x2 3508 | -6/Factory | Build established: Hacker-Mutant 3510 | -6/Factory | Lost 7 parts (1p3n2u1w) 3707 | -6/Factory | Repaired Imp. Propulsion Shielding 3740 | -6/Factory | Repaired Mace 3869 | -6/Factory | Build established: Hacker-Gladiator 3988 | -6/Factory | Fabricated Cesium-ion Thruster? 4101 | -6/Factory | Lost 3 parts (1p2u) 4123 | -6/Factory | Found Prototype Processor 4123 | -6/Factory | Identified Exp. Targeting Computer 4213 | -6/Factory | Repaired Cesium-ion Thruster 4513 | -6/Factory | Build established: Hacker-Sprinter 4524 | -6/Factory | Repaired VTOL Module 4576 | -6/Factory | Core integrity fell below 50% 4613 | -6/Factory | Lost 9 parts (2p4n2u1w) 4652 | -6/Factory | Core integrity fell below 20% 4666 | -6/Factory | Identified exit to Lower Caves 4680 | -6/Factory | Lost 4 parts (1p2u1w) 4718 | -6/Factory | Spotted B-75 Beast 4939 | -6/Factory | Build established: Hacker-Mutant 5076 | -6/Factory | Fabricated Imp. Propulsion Shielding? 5583 | -6/Factory | Repaired Mace 5629 | -6/Factory | Repaired Xenon Bombardment Thruster 5672 | -6/Factory | Entered Lower Caves 5673 | -6/Lower Caves | Encountered a Warlord checkpoint 5729 | -6/Lower Caves | Learned Factory stockpile data 5815 | -6/Lower Caves | Found Alien Artifact 5815 | -6/Lower Caves | Identified Dimensional Node Initializer 5815 | -6/Lower Caves | Initialized slip node 5879 | -6/Lower Caves | Entered a destroyed Warlord outpost 5987 | -6/Lower Caves | Discovered new exit (range 16) 5999 | -6/Lower Caves | Identified exit to Lower Caves 6025 | -6/Lower Caves | Entered another Lower Caves area 6041 | -6/Lower Caves | Destroyed by S-27 Virus with Autogun Last Messages --------------- data lost. 05926_ Acquired 22 matter. 05929_ OX-898(c): "I like it here. It's the perfect spot where no one bothers me, for obvious reasons." 05943_ MNSMH/Z DG#|YL< W9% SM,IBP/8U,CWB 05958_ System corrupted: Component data lost. 05980_ System corrupted: Matter fused (-5). 05987_ EXIT=FOUND 05999_ EXIT=IDENTIFIED: LOWER CAVES LOCATION=LOWER CAVES GOAL=ESCAPE 06030_ Lgt. Fission Core destroyed. 06031_ #EG/MLYWNQGNT&L0:SIHMSXZ#YS7P=AAEWR 06035_ Chainsword follow-up attack on S-27 Virus. 06035_ S-27 Virus destroyed. 06037_ Imp. Propulsion Shielding destroyed. 06037_ Xenon Bombardment Thruster destroyed. 06041_ Acquired VTOL Module. Map ----- +----------------------------------------------------+ | ?????????????????????????????????????????????????? | | ?????????????????????????????????????????????????? | | ?????????????????????????????????????????????????? | | ?????????????????????????????????????????????????? | | ?????????????????????????????????????????????????? | | ?????????????????????????????????????????????????? | | ?????????????????????????????????????????????????? | | ?????????????????????????????????????????????????? | | ?????????????????????????????????????????????????? | | ?????????????????????????????????????????????????? | | ?????????????????????????????????????????????????? | | ??????????????????????????????? ?????????????????? | | ?????????????????????????????? ??????????????????? | | ????????????????????????????? ??????????????????? | | ????????????????????????????? #??????????????????? | | ????????????????????????????? #??????????????????? | | ???????????????????????????? ##?????????????????? | | ???????????????????????????? #?????????????????? | | ???????????????????????????# #?????????????????? | | ??????????????????????????? #??????????????????? | | ??????????????????????????# #??????????????????? | | ????????????????????????## ##?????????????????? | | ???????????????????????## #?????????????????? | | ???????????????????????# #?????????????????? | | ???????????????????????# #?????????????????? | | ???????????????????#???# @ ##?????????????????? | | ?????????????????### ## % #??????????????????? | | ?????????????????# s s## #?????????????????? | | ????????????????# ##?# #?????????????????? | | ????????????????# ####???# #?????????????????? | | ????????????????# #????????##?????????????????? | | ????????????????#####????????????????????????????? | | ?????????????????????????????????????????????????? | | ?????????????????????????????????????????????????? | | ?????????????????????????????????????????????????? | | ?????????????????????????????????????????????????? | | ?????????????????????????????????????????????????? | | ?????????????????????????????????????????????????? | | ?????????????????????????????????????????????????? | | ?????????????????????????????????????????????????? | | ?????????????????????????????????????????????????? | | ?????????????????????????????????????????????????? | | ?????????????????????????????????????????????????? | | ?????????????????????????????????????????????????? | | ?????????????????????????????????????????????????? | | ?????????????????????????????????????????????????? | | ?????????????????????????????????????????????????? | | ?????????????????????????????????????????????????? | | | | | +----------------------------------------------------+ Best States ------------- Heat Dissipation 39 Energy Generation 18 Energy Capacity 250 Matter Stores 300 Matter Capacity 300 Sight Range 16 Robot Scan Range 16 Terrain Scan Range 16 Terrain Scan Density 10 ECM Strength 1 Cloak Strength 2 Additional Mass Support 9 Corruption Block 8 Armor Coverage 150 Propulsion Shielding 66 Evasion (%) 64 Melee Accuracy 8 Target Analysis 6 Offensive Hacking 40 Defensive Hacking 10 Item Schematics ----------------- Flight Unit | -9/Materials | Scanalyzed Sensor Array | -9/Materials | Scanalyzed Mace | -9/Materials | Scanalyzed Propulsion Shielding | -9/Materials | Hacked Lgt. Deuterium Engine | -8/Materials | Scanalyzed Hacking Suite | -8/Materials | Scanalyzed Nuclear Core | -8/Materials | Scanalyzed System Shield | -8/Materials | Scanalyzed Weight Redist. System | -8/Materials | Scanalyzed ECM Suite | -8/Materials | Scanalyzed Cesium-ion Thruster | -7/Factory | Scanalyzed Imp. Propulsion Shielding | -7/Factory | Hacked Imp. Trap Scanner | -7/Factory | Hacked Lgt. Angular Momentum Engine | -6/Factory | Scanalyzed Cloaking Device | -6/Factory | Scanalyzed Imp. Hacking Suite | -6/Factory | Hacked Robot Schematics ------------------ None Fabricated ------------ Imp. Propulsion Shielding | x2 | -7/Factory Cesium-ion Thruster | x2 | -6/Factory Imp. Propulsion Shielding | x2 | -6/Factory Repaired ---------- Imp. Propulsion Shielding | 52% | -6/Factory Mace | 68% | -6/Factory Cesium-ion Thruster | 28% | -6/Factory VTOL Module | 12% | -6/Factory Mace | 43% | -6/Factory Xenon Bombardment Thruster | 50% | -6/Factory Alien Tech Used ----------------- Dimensional Node Initializer Achievements -------------- None Challenges ------------ None Game ------ Seed ArchitectReflectiveBrace Manual? 0 Play Time 01:22:44 Cumulative 207.1 hours Start 2025.06.10 @ 15:28:18 End 2025.06.10 @ 17:25:47 Sessions 1 Manual Loads 0 Difficulty Rogue Special Mode None Game No. 193 Rogue 193 Adventurer 0 Explorer 0 Win Type - Total 1 Types 1/0/0/0/0/0/0/0/0/0 Lore% 42 Gallery% 58 Achievement% 47 Wizard Run 0 Options --------- Layout 2 ASCII 1 Keyboard 1 Movement Numpad Keybinds 0 Fullscreen 2 Font 32/TamsynBold Map View 50x44 Zoom Use 0% Tactical HUD 1 Map Filters NONE Filters NONE Steam 1 RUN: dea7a6eb-72eb-4ea1-bdcf-0276ecf134d6